bitfinex/quotes_ETHUSD_20240816
["timestamp","ask_amount","ask_price","bid_price","bid_amount"]
[1723812946353,2.2917,2583.0,2582.5,3.8722]
[1723812946560,2.2917,2583.0,2582.7,3.87178]
[1723812947071,6.23017,2583.3,2582.7,3.87178]
[1723812947395,6.23017,2583.3,2582.7,7.74361]
[1723812947601,2.3591,2583.3,2582.9,3.8716]
[1723812947780,2.3591,2583.3,2582.7,3.87178]
[1723812947982,6.23021,2583.3,2582.7,3.87178]
[1723812948299,3.87137,2583.1,2582.5,7.74421]
[1723812948468,6.23021,2583.3,2582.6,6.87203]
[1723812948669,10.10133,2583.3,2582.7,3.87188]
[1723812948856,3.87134,2583.1,2582.6,3.0]
[1723812949058,3.87162,2582.9,2582.6,3.0]
[1723812949274,3.87162,2582.9,2582.4,3.0]
[1723812949856,2.3591,2583.0,2582.4,10.74462]
[1723812950097,6.23058,2583.0,2582.4,6.87226]
[1723812950300,2.3591,2583.0,2582.4,6.87225]
[1723812950461,6.23057,2583.0,2582.4,6.87225]
[1723812951073,2.3591,2583.0,2582.4,6.87225]
[1723812951258,2.3591,2583.0,2582.5,3.87221]
[1723812951471,2.3591,2583.0,2582.6,3.0]
[1723812951986,2.3591,2583.0,2582.5,6.8722]
[1723812952169,2.3591,2583.0,2582.5,3.0]
[1723812952366,2.3591,2583.0,2582.5,3.8721]
[1723812952562,2.3591,2583.0,2582.6,3.0]
[1723812953670,2.3591,2583.0,2582.7,3.87191]
[1723812953988,2.3591,2583.0,2582.7,3.87183]
[1723812954168,2.3591,2583.0,2582.9,3.87161]
[1723812954479,2.456,2583.3,2582.7,3.87183]
[1723812954678,3.99908034,2583.2,2582.7,3.87183]
[1723812954891,3.87151,2583.0,2582.6,3.0]
[1723812955404,6.23304,2582.9,2582.4,3.0]
[1723812956179,2.3614,2582.9,2582.4,6.87235]
[1723812957517,3.8725,2582.4,2581.7,3.87332]
[1723812957678,2.3339,2582.8,2581.7,3.87332]
[1723812957679,2.3339,2582.2,2581.7,3.87332]
[1723812958282,2.3339,2582.2,2581.7,3.87331]
[1723812958495,2.3339,2582.2,2581.8,3.87323]
[1723812958797,2.3339,2582.2,2581.7,3.87331]
[1723812958798,2.3339,2582.2,2581.9,3.87303]
[1723812959311,2.3339,2582.2,2581.9,3.87302]
[1723812959871,2.3339,2582.2,2581.9,7.74605]
[1723812960116,2.4555,2582.6,2582.1,3.87281]
[1723812960265,0.12794893,2582.5,2582.1,3.87271]
[1723812960465,0.12794893,2582.5,2581.7,3.0]
[1723812960466,2.4555,2582.6,2581.7,6.87331]
[1723812960671,2.4555,2582.2,2581.7,6.87331]
[1723812961308,2.4555,2582.2,2581.8,3.87317]
[1723812961475,2.4555,2582.2,2581.9,3.0]
[1723812961676,2.4555,2582.2,2581.8,3.0]
[1723812961900,3.87287,2582.1,2581.3,3.87388]
[1723812962212,3.63284816,2582.9,2581.3,3.87388]
[1723812962213,2.4555,2581.8,2581.3,3.87398]
[1723812962414,2.4555,2581.8,2581.3,3.87392]
[1723812963400,2.4555,2581.8,2581.4,3.0]
[1723812963797,2.4555,2581.8,2581.5,3.87361]
[1723812964027,2.4221,2582.2,2581.7,3.87341]
[1723812964401,2.4221,2582.2,2581.8,3.87316]
[1723812964736,2.4221,2582.2,2581.7,3.87332]
[1723812965922,2.4221,2582.2,2581.8,3.87325]
[1723812966377,2.4221,2582.2,2581.9,3.87303]
[1723812966853,2.4221,2582.2,2581.7,3.87328]
[1723812968456,7.74587,2582.1,2581.5,3.87363]
[1723812968661,3.87292,2582.1,2581.6,3.0]
[1723812968861,3.87338,2581.8,2581.4,3.0]
[1723812969033,6.18588,2581.8,2581.2,6.87415]
[1723812969562,6.18588,2581.8,2581.2,6.87414]
[1723812969563,3.87343,2581.7,2581.2,6.87414]
[1723812969866,2.3125,2581.8,2581.2,3.0]
[1723812970073,3.87345,2581.7,2581.2,3.0]
[1723812970223,2.3191,2581.5,2581.0,3.87446]
[1723812970937,2.3191,2581.5,2581.0,3.86446]
[1723812971139,2.3191,2581.5,2581.1,3.87429]
[1723812971375,2.3191,2581.5,2581.1,7.74851]
[1723812971520,2.2569,2581.9,2581.3,3.87393]
[1723812971723,2.2569,2581.9,2581.5,3.87361]
[1723812972282,3.87335,2581.8,2581.2,6.87413]
[1723812972941,6.13012,2581.9,2581.3,3.874]
[1723812973136,6.13012,2581.9,2581.4,3.0]
[1723812973352,2.2569,2581.9,2581.5,3.8737]
[1723812973581,2.2569,2581.9,2581.4,3.0]
[1723812973868,6.13002,2581.9,2581.4,3.0]
[1723812974433,2.2569,2581.9,2581.4,6.87386]
[1723812975741,2.2569,2581.9,2581.5,3.87368]
[1723812975941,2.2569,2581.9,2581.4,3.0]
[1723812976350,2.2569,2581.9,2581.5,3.87371]
[1723812977744,0.06748839,2583.0,2581.9,3.87301]
[1723812977745,2.3928,2582.4,2581.9,3.87301]
[1723812977943,2.3928,2582.4,2581.9,3.87303]
[1723812978479,2.3928,2582.4,2582.0,3.87295]
[1723812978885,2.3928,2582.4,2581.9,3.87302]
[1723812980075,3.8726,2582.3,2581.7,3.87335]
[1723812980245,3.0,2582.9,2581.4,3.0]
[1723812980246,2.3153,2582.2,2581.4,3.0]
[1723812980446,7.50841437,2582.8,2581.4,3.0]
[1723812980447,3.87342,2581.7,2581.4,3.0]
[1723812980658,3.87342,2581.7,2581.1,3.87423]
[1723812980659,3.87342,2581.7,2581.2,6.87414]
[1723812981089,2.2686,2581.8,2581.3,3.87396]
[1723812981257,2.2686,2581.8,2581.1,3.87421]
[1723812981258,3.87346,2581.7,2581.1,3.87421]
[1723812981461,2.2686,2581.4,2580.9,3.87452]
[1723812981764,2.2686,2581.4,2580.9,7.74905]
[1723812981953,2.2686,2581.4,2580.9,3.87452]
[1723812982375,2.2686,2581.4,2580.9,7.74905]
[1723812982590,2.2686,2581.4,2581.0,3.87445]
[1723812983969,2.2686,2581.4,2580.9,3.87452]
[1723812984174,2.2686,2581.4,2581.0,3.0]
[1723812984371,2.2686,2581.4,2581.1,3.87431]
[1723812986165,2.2686,2581.4,2581.0,3.0]
[1723812987763,2.4975,2581.0,2580.3,3.87542]
[1723812988107,6.3721,2581.0,2580.3,3.87542]
[1723812988305,2.4975,2581.0,2580.3,3.87542]
[1723812988613,2.2517,2581.2,2580.7,3.87483]
[1723812989107,0.12801843,2581.1,2580.7,3.87483]
[1723812989302,6.1259,2581.2,2580.7,3.87483]
[1723812989493,4.00234167,2581.1,2580.5,3.87511]
[1723812989808,3.87449,2581.0,2580.3,7.7509]
[1723812990107,3.87432,2581.1,2580.5,7.75022]
[1723812990324,2.2517,2581.2,2580.6,3.87506]
[1723812990465,0.12802019,2581.1,2580.6,3.87506]
[1723812990665,6.12588,2581.2,2580.6,3.87506]
[1723812991062,2.2517,2581.2,2580.7,3.87478]
[1723812992079,3.87379,2581.5,2580.5,3.07748863]
[1723812992407,2.3187,2581.8,2581.2,3.87404]
[1723812992616,0.12799005,2581.7,2581.2,3.87404]
[1723812992762,2.3187,2581.8,2581.2,3.87404]
[1723812992966,10.06544,2581.8,2581.2,3.87404]
[1723812993164,6.19206,2581.8,2581.2,3.87404]
[1723812993478,6.19206,2581.8,2581.2,7.74811]
[1723812993811,0.12798958,2581.7,2581.3,3.87401]
[1723812994018,2.3187,2581.8,2581.6,3.87353]
[1723812994225,3.87239,2582.4,2582.0,3.87281]
[1723812994226,2.3475,2582.4,2582.0,3.87281]
[1723812994366,3.87179,2582.8,2582.1,3.8727]
[1723812994367,2.3475,2582.7,2582.1,3.8727]
[1723812994565,0.12794818,2582.6,2582.2,6.87263]
[1723812994802,2.3475,2582.7,2582.2,6.87263]
[1723812994971,2.3475,2582.7,2582.2,6.87255]
[1723812995172,2.3475,2582.7,2582.3,3.8725]
[1723812996034,3.87155,2583.0,2582.2,6.87255]
[1723812996035,6.17305,2583.0,2582.4,3.8723]
[1723812996328,0.12793634,2582.9,2582.4,3.8723]
[1723812996489,0.12793578,2582.8,2582.2,10.7451]
[1723812996691,0.12794129,2582.7,2582.2,6.87255]
[1723812996928,3.87205,2582.7,2582.2,3.0]
[1723812998127,2.4618,2582.6,2581.9,3.87304]
[1723812998438,3.87239,2582.4,2582.0,3.0]
[1723812998601,6.3339,2582.6,2581.9,3.87308]
[1723812998796,6.3339,2582.6,2581.8,3.0]
[1723812998797,0.1279462,2582.5,2582.0,3.0]
[1723812999132,3.87253,2582.3,2581.8,3.0]
[1723812999910,3.87268,2582.2,2581.8,3.0]
[1723813000103,3.87268,2582.2,2581.9,3.0]
[1723813000104,6.30662,2582.1,2581.9,3.0]
[1723813000335,6.30662,2582.1,2581.6,3.0]
[1723813000336,2.4338,2582.1,2581.6,3.0]
[1723813000540,2.4338,2582.1,2581.7,3.87331]
[1723813000749,2.4338,2582.1,2581.8,3.0]
[1723813001038,2.4338,2582.1,2581.6,3.0]
[1723813001208,2.4338,2582.1,2581.7,3.87327]
[1723813001407,2.4338,2582.1,2581.8,3.0]
[1723813001599,2.4338,2582.1,2581.8,6.87316]
[1723813001820,2.4338,2582.1,2581.8,3.0]
[1723813002141,3.87247,2582.4,2581.8,3.0]
[1723813002142,2.2863,2582.4,2581.8,3.0]
[1723813002349,2.2863,2582.4,2582.1,3.87269]
[1723813002648,2.4857,2582.8,2582.3,3.8725]
[1723813002795,2.4857,2582.8,2582.3,7.7449]
[1723813002992,2.4857,2582.8,2582.4,3.87235]
[1723813003340,2.4857,2582.8,2582.4,3.85735]
[1723813003901,2.4857,2582.8,2582.3,3.87248]
[1723813004100,2.4356,2582.9,2582.4,3.87226]
[1723813004334,2.4356,2582.9,2582.2,6.87258]
[1723813004495,3.87194,2582.7,2582.2,3.0]
[1723813004699,3.87194,2582.7,2582.0,7.74582]
[1723813004700,3.87194,2582.7,2582.1,6.8728]
[1723813004938,2.4356,2582.9,2582.1,3.0]
[1723813004939,3.87246,2582.4,2582.1,3.0]
[1723813005143,2.4356,2582.5,2581.9,6.8731]
[1723813005437,6.30793,2582.5,2581.9,6.87301]
[1723813005916,3.87236,2582.4,2581.9,3.0]
[1723813006303,3.87236,2582.4,2581.9,6.87307]
[1723813006735,2.4356,2582.5,2581.9,6.87307]
[1723813006942,6.22812,2582.8,2582.0,3.87292]
[1723813007238,2.3563,2582.8,2582.4,3.87235]
[1723813008649,3.872,2582.7,2582.0,3.87294]
[1723813008849,2.3563,2582.8,2582.3,3.8725]
[1723813009043,2.3563,2582.8,2582.2,3.87258]
[1723813009044,6.22808,2582.8,2582.2,3.87258]
[1723813009353,3.87197,2582.7,2582.2,3.87258]
[1723813010050,3.8714,2583.1,2582.3,5.44794553]
[1723813010251,6.24456,2583.0,2582.4,3.87224]
[1723813010926,6.24456,2583.0,2582.4,7.74451]
[1723813011124,6.24456,2583.0,2582.4,3.87224]
[1723813011427,3.8711,2583.3,2582.6,3.87205]
[1723813011428,3.87134,2583.1,2582.6,3.87205]
[1723813011747,3.87134,2583.1,2582.4,3.87224]
[1723813011951,3.87149,2583.0,2582.5,3.0]
[1723813012846,6.22382,2583.3,2582.5,3.0]
[1723813013153,6.22382,2583.3,2582.9,3.8716]
[1723813013154,2.3528,2583.3,2582.9,3.8716]
[1723813013450,2.3528,2583.3,2582.8,3.87168]
[1723813013744,2.3528,2583.3,2582.8,3.87167]
[1723813013950,2.3528,2583.3,2582.9,3.8716]
[1723813014117,2.3528,2583.3,2582.8,3.87167]
[1723813014546,6.22382,2583.3,2582.8,3.87167]
[1723813014747,6.22382,2583.3,2582.6,3.87199]
[1723813014748,6.22382,2583.3,2582.6,3.87194]
[1723813014909,6.22382,2583.3,2582.7,6.8719]
[1723813015305,6.22382,2583.3,2582.8,3.87175]
[1723813015536,2.3528,2583.3,2582.9,3.87158]
[1723813016810,6.35947,2583.6,2583.0,7.74282]
[1723813017024,6.35947,2583.6,2583.2,3.87113]
[1723813017025,2.4889,2583.6,2583.2,3.87113]
[1723813017235,2.4889,2583.6,2583.3,3.871]
[1723813017450,2.4889,2583.6,2583.2,3.87107]
[1723813017637,2.4889,2583.6,2583.2,3.94848424]
[1723813017837,2.4889,2583.6,2583.3,3.871]
[1723813018036,2.4889,2583.6,2583.2,7.74215]
[1723813018322,2.4889,2583.6,2583.3,3.871]
[1723813018657,2.2856,2583.9,2583.4,3.87086]
[1723813018977,0.1271126,2584.0,2583.4,2.4167]
[1723813019271,0.1271126,2584.0,2583.9,7.74022]
[1723813019651,0.1271126,2584.0,2583.9,10.74022]
[1723813019966,0.1271126,2584.0,2583.9,6.87011]
[1723813020342,0.1271126,2584.0,2583.9,10.74022]
[1723813021069,0.1271126,2584.0,2583.9,13.10942]
[1723813021381,0.1271126,2584.0,2583.9,17.52953]
[1723813021678,0.00413359,2584.0,2583.9,17.91773]
[1723813021857,2.4771,2585.8,2584.5,2.3692]
[1723813022095,2.4771,2585.8,2585.5,3.8676]
[1723813022437,2.4771,2586.2,2585.2,3.0]
[1723813022564,2.4771,2586.2,2585.5,3.86763]
[1723813022763,2.4261,2586.1,2585.6,3.0]
[1723813022988,2.4261,2586.1,2585.2,6.86803]
[1723813022989,2.4261,2586.1,2585.5,3.86771]
[1723813023364,2.4261,2586.1,2585.4,6.86774]
[1723813023365,2.4261,2586.1,2585.7,3.8674]
[1723813023808,2.4261,2586.1,2585.8,3.86727]
[1723813023968,3.9932326,2586.6,2585.4,3.0]
[1723813023969,2.334,2586.5,2585.4,8.396]
[1723813024168,0.1271126,2586.6,2586.3,3.86642]
[1723813024367,2.4611126,2586.6,2585.9,6.86699]
[1723813024573,6.3272826,2586.6,2585.9,6.86699]
[1723813024998,2.4611126,2586.6,2585.9,6.86699]
[1723813025197,0.1271126,2586.6,2585.9,3.0]
[1723813025413,3.86623,2586.5,2585.8,3.86717]
[1723813025732,3.86623,2586.5,2585.9,6.86708]
[1723813025885,0.1271126,2586.6,2586.2,3.86657]
[1723813026089,0.1271126,2586.6,2586.0,4.41687]
[1723813026318,0.1271126,2586.6,2586.1,6.86682]
[1723813026530,0.1271126,2586.6,2586.2,3.86666]
[1723813026733,0.1271126,2586.6,2586.2,3.86656]
[1723813026886,0.1271126,2586.6,2586.1,3.0]
[1723813027829,2.2987,2586.4,2585.9,6.86708]
[1723813028132,0.1271126,2586.6,2586.0,3.86697]
[1723813028286,0.1271126,2586.6,2586.1,3.0]
[1723813028829,0.1271126,2586.6,2586.1,3.8667]
[1723813029591,3.86624,2586.5,2586.0,3.0]
[1723813029851,0.1271126,2586.6,2586.1,3.86673]
[1723813030592,0.1271126,2586.6,2586.0,3.0]
[1723813030794,0.1271126,2586.6,2586.0,3.86697]
[1723813030994,0.1271126,2586.6,2586.2,3.86657]
[1723813031534,0.1271126,2586.6,2586.2,7.73313]
[1723813031841,0.1271126,2586.6,2586.2,3.86656]
[1723813032198,0.1271126,2586.6,2586.3,7.73285]
[1723813032443,0.1271126,2586.6,2586.3,3.86642]
[1723813032598,0.1271126,2586.6,2586.5,3.86622]
[1723813033242,0.1271126,2586.6,2586.2,3.86657]
[1723813033425,0.1271126,2586.6,2586.5,3.86622]
[1723813034011,0.1271126,2586.6,2586.5,7.73244]
[1723813034531,0.1271126,2586.6,2586.5,3.86622]
[1723813035554,0.1271126,2586.6,2586.3,3.86646]
[1723813035701,0.1271126,2586.6,2586.4,3.0]
[1723813035902,0.1271126,2586.6,2585.8,9.26315]
[1723813035903,0.1271126,2586.6,2585.8,3.86715]
[1723813036097,3.86638,2586.4,2585.6,3.86745]
[1723813036424,3.86638,2586.4,2585.8,3.86726]
[1723813036626,3.86638,2586.4,2585.6,3.86745]
[1723813036627,6.35277,2586.2,2585.6,3.86745]
[1723813036826,6.35277,2586.2,2585.6,7.73492]
[1723813036827,0.635277,2586.1,2585.6,7.73492]
[1723813037043,0.635277,2586.1,2585.7,3.86737]
[1723813037344,2.486,2586.2,2585.7,3.86737]
[1723813037644,2.486,2586.2,2585.6,3.86745]
[1723813037944,6.35268,2586.2,2585.4,3.86774]
[1723813038149,0.635268,2586.1,2585.2,0.58875143]
[1723813038345,2.486,2586.2,2585.7,3.86732]
[1723813039105,2.486,2586.2,2585.5,3.86764]
[1723813039304,2.486,2585.8,2585.2,3.86807]
[1723813039631,6.35336,2585.8,2585.2,3.86807]
[1723813040148,6.35336,2585.8,2585.2,3.86812]
[1723813040149,3.86752,2585.7,2585.2,3.86812]
[1723813040302,1.022048,2585.7,2585.2,3.86812]
[1723813040622,3.86803,2585.3,2584.8,3.86869]
[1723813040941,6.36569,2585.4,2584.8,3.86873]
[1723813041146,2.4978,2585.4,2584.8,3.86868]
[1723813041347,3.16943448,2585.4,2584.8,3.86868]
[1723813041646,7.03732448,2585.4,2584.8,3.86867]
[1723813042029,3.16943448,2585.4,2584.8,3.86867]
[1723813042538,3.16943448,2585.4,2584.9,3.86853]
[1723813042758,3.16943448,2585.4,2584.8,3.86867]
[1723813042759,0.70371745,2585.3,2584.8,3.86867]
[1723813042962,0.70371745,2585.3,2584.9,3.0]
[1723813043131,2.4954,2585.8,2585.3,3.86793]
[1723813043335,3.13166,2585.8,2585.2,3.86806]
[1723813043523,6.99903,2585.8,2585.3,3.0]
[1723813043719,1.086623,2585.7,2585.3,3.0]
[1723813043924,4.954133,2585.7,2585.3,3.0]
[1723813044168,1.086623,2585.7,2585.2,3.0]
[1723813044369,7.73533,2585.6,2585.0,3.0]
[1723813044578,3.86765,2585.6,2585.0,3.0]
[1723813044886,3.8687,2584.9,2584.0,5.396]
[1723813045088,6.16977,2584.8,2584.0,5.396]
[1723813045374,6.16977,2584.8,2583.7,7.45]
[1723813045375,2.301,2584.8,2583.7,7.45]
[1723813045582,6.16294,2584.3,2583.7,3.8703]
[1723813045733,3.86982,2584.1,2583.5,3.87065]
[1723813045935,3.87006,2584.0,2583.3,3.87089]
[1723813046369,6.16353,2583.9,2583.3,3.87089]
[1723813046554,2.2934,2583.9,2583.5,3.87069]
[1723813046960,2.2934,2583.9,2583.3,3.87094]
[1723813046961,2.2934,2583.9,2583.3,7.74184]
[1723813047282,2.2934,2583.9,2583.4,3.87085]
[1723813047486,2.2934,2583.9,2583.5,3.87069]
[1723813047780,3.87042,2583.7,2583.1,3.87123]
[1723813048491,2.52274,2583.9,2582.9,3.87161]
[1723813048637,2.52274,2583.9,2583.3,3.87092]
[1723813048967,7.7407,2583.8,2583.2,3.87112]
[1723813049137,4.896854,2583.7,2583.0,3.87136]
[1723813049333,4.896854,2583.7,2583.0,3.87142]
[1723813049564,3.87061,2583.6,2583.0,3.87142]
[1723813049946,1.026344,2583.7,2583.3,3.871]
[1723813050265,6.16359,2583.9,2582.9,1.13516607]
[1723813050266,2.2934,2583.9,2583.5,3.87058]
[1723813050783,2.2934,2583.9,2583.5,3.87062]
[1723813051078,2.2902,2584.2,2583.6,6.87051]
[1723813051281,6.15996,2584.2,2583.6,3.87051]
[1723813051485,6.15996,2584.2,2583.7,3.0]
[1723813052133,5.396,2585.0,2583.2,3.87113]
[1723813052134,3.87006,2584.0,2583.2,3.87113]
[1723813052280,3.87027,2583.8,2583.3,6.87099]
[1723813052581,4.878203,2583.8,2583.3,3.0]
[1723813053155,1.007933,2583.8,2583.3,3.0]
[1723813053482,2.339,2583.9,2583.3,3.0]
[1723813053656,2.339,2583.9,2583.4,3.87077]
[1723813053856,6.20916,2583.9,2583.5,3.0]
[1723813054185,2.339,2583.9,2582.8,3.87174]
[1723813054388,2.3943,2583.4,2582.8,7.74341]
[1723813054699,2.2529,2583.0,2582.4,3.87226]
[1723813055152,3.87163,2582.9,2582.2,3.87254]
[1723813055655,3.252474,2583.0,2582.0,3.87289]
[1723813055863,3.252474,2583.0,2581.8,3.87318]
[1723813055864,2.2529,2582.6,2581.8,3.87318]
[1723813056072,6.12499,2582.6,2582.1,3.87279]
[1723813056281,3.252604,2582.6,2582.1,3.87279]
[1723813056496,2.2529,2582.6,2582.1,3.87271]
[1723813056702,2.2529,2582.6,2582.1,7.74543]
[1723813056904,2.2529,2582.6,2582.2,3.87261]
[1723813057118,2.2529,2582.6,2581.9,7.74607]
[1723813057260,2.865382,2582.6,2582.0,3.87293]
[1723813057458,2.865382,2582.6,2582.1,3.8728]
[1723813057770,2.865382,2582.6,2582.2,3.87263]
[1723813057984,2.2529,2582.6,2582.2,3.87263]
[1723813058192,2.2529,2582.6,2582.4,3.87226]
[1723813058370,3.0,2583.8,2582.5,10.74422]
[1723813058371,2.4796,2583.0,2582.5,10.74422]
[1723813058554,2.4796,2583.0,2582.7,3.87187]
[1723813058866,2.4796,2583.0,2582.5,3.0]
[1723813059073,2.3429,2583.6,2582.9,3.87161]
[1723813059282,3.87107,2583.3,2582.7,3.87184]
[1723813059483,2.3429,2583.1,2582.5,7.74425]
[1723813059657,2.3429,2583.1,2582.6,3.0]
[1723813059868,3.351417,2583.1,2582.6,6.87195]
[1723813060383,2.3429,2583.1,2582.7,3.8719]
[1723813060604,2.3429,2583.4,2582.9,3.87156]
[1723813061103,2.3429,2583.4,2582.9,3.87151]
[1723813061457,2.3429,2583.4,2582.7,0.3]
[1723813061658,2.4782,2583.7,2583.4,3.87075]
[1723813062098,2.4782,2583.7,2583.2,3.87109]
[1723813062304,2.4782,2583.7,2583.3,3.0]
[1723813062509,2.4388,2584.1,2583.3,3.987109]
[1723813062802,3.87009,2584.0,2583.3,3.87092]
[1723813062970,2.4388,2584.1,2582.9,3.0]
[1723813062971,0.630889,2583.9,2583.4,3.87085]
[1723813063175,6.30875,2584.1,2583.4,3.87085]
[1723813063572,6.30875,2584.1,2583.6,3.87054]
[1723813063992,6.30875,2584.1,2583.4,3.87075]
[1723813063993,6.3087,2584.1,2583.4,3.87075]
[1723813064186,3.8702,2583.9,2583.2,3.87104]
[1723813064399,3.8702,2583.9,2583.3,6.87092]
[1723813064400,4.9511765,2583.9,2583.3,6.87092]
[1723813064804,4.9511765,2583.9,2583.3,3.0]
[1723813064990,2.2965,2583.6,2583.3,3.0]
[1723813065189,2.2965,2583.6,2583.3,3.87089]
[1723813065503,2.2965,2583.6,2583.2,3.87108]
[1723813065711,2.2965,2583.6,2583.3,3.0]
[1723813069107,2.2547,2583.9,2583.4,3.87085]
[1723813069431,2.2547,2583.9,2583.3,3.0]
[1723813069741,2.3404,2584.3,2583.8,3.87026]
[1723813069903,2.3404,2584.3,2583.8,3.87018]
[1723813070109,0.386882,2584.7,2583.3,3.87098]
[1723813070110,2.727282,2584.7,2583.9,3.07739503]
[1723813070307,2.727282,2584.7,2583.6,2.4082]
[1723813070308,3.86917,2584.6,2584.0,4.41989]
[1723813070630,1.0465302,2584.6,2584.2,3.86965]
[1723813070840,2.3404,2584.7,2584.3,3.86948]
[1723813070990,2.3404,2584.7,2584.2,3.86965]
[1723813071634,3.87039,2583.8,2582.6,2.3389]
[1723813071835,2.4028,2583.6,2582.8,3.87166]
[1723813071984,3.87095,2583.4,2582.7,3.87182]
[1723813072346,7.74193,2583.4,2582.7,4.646175]
[1723813072491,7.74192,2583.4,2582.7,4.646175]
[1723813072838,3.87095,2583.4,2582.7,4.646175]
[1723813072987,3.87095,2583.4,2582.8,3.87175]
[1723813073188,7.74192,2583.4,2582.7,3.87178]
[1723813073393,3.87105,2583.3,2582.7,3.87178]
[1723813073618,3.87095,2583.4,2582.8,3.87174]
[1723813073802,3.87075,2583.5,2582.9,3.8716]
[1723813074402,3.87075,2583.5,2582.7,3.87178]
[1723813074403,3.87086,2583.4,2583.0,3.0]
[1723813074621,3.87086,2583.4,2582.8,3.0]
[1723813074786,3.87086,2583.4,2582.8,6.87175]
[1723813074991,0.45650609,2583.5,2582.9,3.87149]
[1723813075191,6.27344,2583.6,2583.0,6.87146]
[1723813075388,6.27344,2583.6,2583.0,3.0]
[1723813075651,0.12790353,2583.5,2583.0,3.0]
[1723813075933,3.87114,2583.3,2582.8,3.0]
[1723813076130,2.4028,2583.6,2582.8,3.0]
[1723813076131,3.87119,2583.2,2582.8,3.0]
[1723813076426,6.35852,2583.1,2582.6,3.0]
[1723813077254,2.4964,2583.4,2582.6,3.0]
[1723813077563,2.4964,2583.4,2582.9,3.8715]
[1723813077765,2.4964,2583.4,2582.7,7.42177]
[1723813077766,6.36726,2583.4,2582.7,7.42177]
[1723813077976,6.36726,2583.4,2582.7,3.87177]
[1723813078259,7.74246,2583.2,2582.8,3.0]
[1723813078482,3.87148,2583.0,2582.3,3.87239]
[1723813078633,3.87127,2583.2,2582.6,3.87198]
[1723813078817,2.4964,2583.4,2582.2,2.4274]
[1723813079022,6.33211,2583.7,2583.1,3.87119]
[1723813079220,3.99847166,2583.6,2583.1,3.87119]
[1723813079465,3.99847166,2583.6,2582.9,3.87154]
[1723813079466,3.99875888,2583.5,2582.7,3.87179]
[1723813079675,0.12789888,2583.4,2582.9,3.87151]
[1723813079818,0.97945748,2583.4,2582.9,3.87151]
[1723813080020,4.7224386,2583.4,2582.7,10.74364]
[1723813080233,6.24081,2583.2,2582.8,3.0]
[1723813080434,6.24081,2583.2,2582.7,3.0]
[1723813080435,3.87172,2582.9,2582.4,7.45]
[1723813080724,3.87172,2582.9,2582.5,3.0]
[1723813081308,6.24085,2583.2,2582.5,3.0]
[1723813081563,6.24085,2583.2,2582.6,7.7439]
[1723813081776,2.3696,2583.2,2582.6,3.87193]
[1723813081923,2.3696,2583.2,2582.8,3.87176]
[1723813082117,2.3696,2583.2,2582.6,7.74391]
[1723813082118,6.24076,2583.2,2582.6,7.74391]
[1723813082369,2.3696,2583.2,2582.6,3.87193]
[1723813082916,2.3696,2583.2,2582.8,3.87167]
[1723813084041,2.373,2583.6,2582.8,0.07742474]
[1723813084174,3.87011,2584.0,2583.4,3.87076]
[1723813084373,3.87011,2584.0,2583.3,3.87088]
[1723813084374,0.12788886,2583.9,2583.3,3.87088]
[1723813084610,10.18123,2584.2,2583.6,3.87053]
[1723813084769,0.12787916,2584.1,2583.6,3.87053]
[1723813085115,9.26512,2584.6,2584.1,3.86979]
[1723813085116,6.23103,2584.6,2584.1,3.86979]
[1723813085323,6.23103,2584.6,2583.8,3.87018]
[1723813085324,0.12785424,2584.5,2583.8,3.87018]
[1723813085473,0.12785424,2584.4,2583.6,3.87053]
[1723813085679,3.99731424,2584.4,2583.7,4.257353]
[1723813085880,3.86946,2584.4,2583.8,6.87015]
[1723813086210,7.73894,2584.4,2583.8,3.87015]
[1723813086514,0.1278648,2584.3,2583.8,3.87015]
[1723813086715,3.86952,2584.3,2583.8,3.87015]
[1723813086918,0.12786637,2584.2,2583.4,10.45]
[1723813087223,7.51223213,2584.7,2583.4,10.45]
[1723813087224,6.14842,2584.1,2583.5,4.42057]
[1723813087432,6.14842,2584.1,2583.6,3.0]
[1723813088084,6.14842,2584.1,2583.5,3.0]
[1723813088085,7.150211,2584.1,2583.5,3.0]
[1723813088416,7.150211,2584.1,2583.4,3.87074]
[1723813088417,0.12787947,2584.0,2583.4,3.87074]
[1723813088718,3.99799293,2583.9,2583.5,3.0]
[1723813089020,0.12788599,2583.8,2583.4,3.87081]
[1723813089174,3.87011,2583.9,2583.4,3.87081]
[1723813089175,4.9575272,2583.9,2583.4,3.87081]
[1723813089376,0.1278856,2583.8,2583.4,3.87081]
[1723813089605,4.9575272,2583.9,2583.4,3.87081]
[1723813089820,0.12788703,2583.8,2583.4,3.87081]
[1723813090030,4.9575272,2583.9,2583.4,3.87081]
[1723813090209,0.12788906,2583.8,2583.4,3.87081]
[1723813090411,1.0874172,2583.9,2583.4,3.87077]
[1723813090625,0.1278868,2583.8,2583.4,3.87077]
[1723813090825,1.0874172,2583.9,2583.5,3.87071]
[1723813091035,6.1484,2584.1,2583.5,3.87071]
[1723813091036,0.12788641,2583.8,2583.5,3.87071]
[1723813091337,11.02011,2584.1,2583.5,3.87071]
[1723813091506,4.41533859,2584.0,2583.5,3.87071]
[1723813091712,0.12788546,2583.9,2583.4,3.87077]